fUST/lending_fUST_20250715
["ID","MTS","AMOUNT","RATE_DAILY","PERIOD"]
[372124639,1752528650874,-500.0,0.00021064,2]
[372124640,1752528650884,-342.98156815,0.0002121,4]
[372124641,1752528650894,-342.98156815,0.00021486,5]
[372124642,1752528650903,-342.98156815,0.00021762,5]
[372124643,1752528650913,-462.85837066,0.00021801,2]
[372124644,1752528650922,-500.0,0.00021816,2]
[372124645,1752528650931,-322.60524523,0.00021816,2]
[372124646,1752528650941,-497.12721696,0.00021816,2]
[372124647,1752528650950,-500.0,0.00021816,2]
[372124648,1752528650959,-500.0,0.00021816,2]
[372124649,1752528650969,-500.0,0.00021816,2]
[372124650,1752528650979,-500.0,0.00021816,2]
[372124651,1752528650988,-500.0,0.00021816,2]
[372124652,1752528650997,-391.12044492,0.00021816,2]
[372124653,1752528651008,-500.0,0.00021873,2]
[372124654,1752528651017,-500.0,0.00021873,2]
[372124655,1752528651026,-500.99239054,0.00021873,2]
[372124656,1752528651036,-500.0,0.00021873,2]
[372124657,1752528651045,-155.03621667,0.00021873,2]
[372124658,1752528651055,-160.03430098,0.00021873,2]
[372124659,1752528651064,-500.0,0.00021873,2]
[372124660,1752528651073,-500.0,0.00021873,2]
[372124661,1752528651083,-500.0,0.00021873,2]
[372124662,1752528651093,-158.02400068,0.00021873,2]
[372124663,1752528651102,-502.89019023,0.00021873,2]
[372124664,1752528651111,-500.0,0.00021873,2]
[372124665,1752528651121,-500.0,0.00021873,2]
[372124666,1752528651130,-231.16956046,0.00021873,2]
[372124667,1752528651139,-509.34155705,0.00021873,2]
[372124668,1752528651149,-877.3,0.000219,2]
[372124669,1752528651158,-460.0,0.00021917,3]
[372124670,1752528651167,-460.0,0.00021917,3]
[372124671,1752528651177,-460.0,0.00021917,3]
[372124672,1752528651186,-460.0,0.00021917,3]
[372124673,1752528651196,-460.0,0.00021917,3]
[372124674,1752528651205,-460.0,0.00021917,3]
[372124675,1752528651215,-460.0,0.00021917,3]
[372124676,1752528651224,-151.0,0.00021917,2]
[372124677,1752528651233,-460.0,0.00021917,3]
[372124678,1752528651243,-460.0,0.00021917,3]
[372124679,1752528651252,-460.0,0.00021917,3]
[372124680,1752528651261,-214.33456592,0.00021917,3]
[372124681,1752528651271,-460.0,0.00021917,3]
[372124682,1752528651280,-460.0,0.00021917,3]
[372124683,1752528651289,-460.0,0.00021917,3]
[372124684,1752528651299,-460.0,0.00021917,3]
[372124685,1752528651308,-460.0,0.00021917,3]
[372124686,1752528651318,-460.0,0.00021917,3]
[372124687,1752528651327,-460.0,0.00021917,3]
[372124688,1752528651336,-460.0,0.00021917,3]
[372124689,1752528651346,-460.0,0.00021917,3]
[372124690,1752528651355,-460.0,0.00021917,3]
[372124691,1752528651365,-460.0,0.00021917,3]
[372124692,1752528651376,-460.0,0.00021917,3]
[372124693,1752528651385,-460.0,0.00021917,3]
[372124694,1752528651395,-460.0,0.00021917,3]
[372124695,1752528651405,-460.0,0.00021917,3]
[372124696,1752528651420,-460.0,0.00021917,3]
[372124697,1752528651431,-151.0,0.00021917,2]
[372124698,1752528651441,-460.0,0.00021917,3]
[372124699,1752528651452,-460.0,0.00021917,3]
[372124700,1752528651462,-460.0,0.00021917,3]
[372124701,1752528651472,-460.0,0.00021917,3]
[372124702,1752528651482,-160.0,0.00021917,3]
[372124703,1752528651493,-460.0,0.00021917,3]
[372124704,1752528651503,-460.0,0.00021917,3]
[372124705,1752528651514,-460.0,0.00021917,3]
[372124706,1752528651523,-460.0,0.00021917,3]
[372124707,1752528651533,-12600.81778503,0.00021917,3]
[372124708,1752528651542,-460.0,0.00021917,3]
[372124709,1752528651552,-460.0,0.00021917,3]
[372124710,1752528651561,-460.0,0.00021917,3]
[372124711,1752528651570,-460.0,0.00021917,3]
[372124712,1752528651580,-460.0,0.00021917,2]
[372124713,1752528651589,-460.0,0.00021917,3]
[372124714,1752528651598,-460.0,0.00021917,3]
[372124715,1752528651607,-460.0,0.00021917,3]
[372124716,1752528651617,-500.0,0.00021917,3]
[372124717,1752528651626,-500.0,0.00021917,3]
[372124718,1752528651635,-500.0,0.00021917,3]
[372124719,1752528651645,-500.0,0.00021917,3]
[372124720,1752528651654,-500.0,0.00021917,3]
[372124721,1752528651663,-500.0,0.00021917,3]
[372124722,1752528651673,-460.0,0.00021917,3]
[372124723,1752528651682,-500.0,0.00021917,3]
[372124724,1752528651692,-500.0,0.00021917,3]
[372124725,1752528651701,-500.0,0.00021917,3]
[372124726,1752528651711,-460.0,0.00021917,3]
[372124727,1752528651720,-500.0,0.00021917,3]
[372124728,1752528651729,-500.0,0.00021917,3]
[372124729,1752528651739,-500.0,0.00021917,3]
[372124730,1752528651748,-460.0,0.00021917,3]
[372124731,1752528651758,-500.0,0.00021917,3]
[372124732,1752528651767,-500.0,0.00021917,3]
[372124733,1752528651777,-460.0,0.00021917,3]
[372124734,1752528651786,-500.0,0.00021917,3]
[372124735,1752528651796,-500.0,0.00021917,3]
[372124736,1752528651805,-500.0,0.00021917,3]
[372124737,1752528651815,-500.0,0.00021917,3]
[372124738,1752528651824,-500.0,0.00021917,3]
[372124739,1752528651833,-500.0,0.00021917,3]
[372124740,1752528651843,-500.0,0.00021917,3]
[372124741,1752528651853,-460.0,0.00021917,3]
[372124742,1752528651862,-500.0,0.00021917,3]
[372124743,1752528651872,-500.0,0.00021917,3]
[372124744,1752528651881,-377.42,0.00021917,3]
[372124745,1752528651891,-460.0,0.00021917,3]
[372124746,1752528651900,-460.0,0.00021917,3]
[372124747,1752528651909,-460.0,0.00021917,3]
[372124748,1752528651919,-460.0,0.00021917,3]
[372124749,1752528651928,-1256.39,0.00021917,3]
[372124750,1752528651938,-460.0,0.00021917,3]
[372124751,1752528651947,-460.0,0.00021917,3]
[372124752,1752528651957,-460.0,0.00021917,3]
[372124753,1752528651966,-460.0,0.00021917,3]
[372124754,1752528651976,-500.0,0.00021917,3]
[372124755,1752528651985,-500.0,0.00021917,3]
[372124756,1752528651995,-460.0,0.00021917,3]
[372124757,1752528652005,-500.0,0.00021917,3]
[372124758,1752528652014,-334.62,0.00021917,3]
[372124759,1752528652024,-460.0,0.00021917,3]
[372124760,1752528652033,-460.0,0.00021917,3]
[372124761,1752528652043,-460.0,0.00021917,3]
[372124762,1752528652053,-460.0,0.00021917,3]
[372124763,1752528652063,-553.21281671,0.00021917,3]
[372124764,1752528652104,-29.43714189,0.00021917,3]
[372124765,1752528652113,-460.0,0.00021917,3]
[372124766,1752528652123,-460.0,0.00021917,3]
[372124767,1752528652132,-460.0,0.00021917,3]
[372124768,1752528652142,-460.0,0.00021917,3]
[372124769,1752528652151,-460.0,0.00021917,3]
[372124770,1752528652161,-460.0,0.00021917,3]
[372124771,1752528652170,-460.0,0.00021917,3]
[372124772,1752528652179,-460.0,0.00021917,3]
[372124773,1752528652190,-573.23,0.00021917,3]
[372124774,1752528652199,-460.0,0.00021917,3]
[372124775,1752528652208,-460.0,0.00021917,3]
[372124776,1752528652217,-460.0,0.00021917,3]
[372124777,1752528652227,-460.0,0.00021917,3]
[372124778,1752528652236,-460.0,0.00021917,3]
[372124779,1752528652247,-460.0,0.00021917,3]
[372124780,1752528652256,-460.0,0.00021917,3]
[372124781,1752528652265,-460.0,0.00021917,3]
[372124782,1752528652274,-460.0,0.00021917,3]
[372124783,1752528652284,-193.58619011,0.00021917,2]
[372124784,1752528652619,-266.41380989,0.00021917,2]
[372124785,1752528652629,-460.0,0.00021917,3]
[372124786,1752528652638,-185.06841317,0.00021917,3]
[372124787,1752528652647,-460.0,0.00021917,3]
[372124788,1752528652657,-460.0,0.00021917,3]
[372124789,1752528652667,-529.85,0.00021917,3]
[372124790,1752528652676,-458.44102975,0.00021917,3]
[372124791,1752528652685,-460.0,0.00021917,3]
[372124792,1752528652695,-460.0,0.00021917,3]
[372124793,1752528652704,-460.0,0.00021917,3]
[372124794,1752528652713,-460.0,0.00021917,3]
[372124795,1752528652723,-460.0,0.00021917,3]
[372124796,1752528652732,-460.0,0.00021917,3]
[372124797,1752528652742,-460.0,0.00021917,3]
[372124798,1752528652751,-460.0,0.00021917,3]
[372124799,1752528652761,-514.1,0.00021917,3]
[372124800,1752528652770,-460.0,0.00021917,3]
[372124801,1752528652783,-460.0,0.00021917,3]
[372124802,1752528652792,-460.0,0.00021917,3]
[372124803,1752528652802,-151.0,0.00021918,2]
[372124804,1752528652811,-151.0,0.00021918,2]
[372124805,1752528652821,-150.0,0.00021918,2]
[372124806,1752528652830,-319.42525985,0.00021973,2]
[372124807,1752528652841,-500.0,0.00021973,2]
[372124808,1752528652851,-500.0,0.00021973,2]
[372124809,1752528652860,-500.0,0.00021973,2]
[372124810,1752528652869,-500.0,0.00021973,2]
[372124811,1752528652880,-500.0,0.00021973,2]
[372124812,1752528652889,-214.33456592,0.00022,7]
[372124813,1752528652898,-34184.07,0.00022,7]
[372124814,1752528652908,-160.0,0.00022023,2]
[372124815,1752528652917,-342.98156815,0.00022038,6]
[372124816,1752528652927,-460.0,0.00022191,3]
[372124817,1752528652936,-460.0,0.00022191,3]
[372124818,1752528652945,-460.0,0.00022191,3]
[372124819,1752528652955,-460.0,0.00022191,3]
[372124820,1752528652964,-460.0,0.00022191,3]
[372124821,1752528652973,-460.0,0.00022191,3]
[372124822,1752528652983,-460.0,0.00022191,3]
[372124823,1752528652993,-460.0,0.00022191,3]
[372124824,1752528653002,-460.0,0.00022191,3]
[372124825,1752528653011,-460.0,0.00022191,3]
[372124826,1752528653021,-1256.39,0.00022191,3]
[372124827,1752528653031,-460.0,0.00022191,3]
[372124828,1752528653041,-460.0,0.00022191,3]
[372124829,1752528653050,-460.0,0.00022191,3]
[372124830,1752528653060,-460.0,0.00022191,3]
[372124831,1752528653069,-460.0,0.00022191,3]
[372124832,1752528653079,-460.0,0.00022191,3]
[372124833,1752528653089,-460.0,0.00022191,3]
[372124834,1752528653099,-460.0,0.00022191,3]
[372124835,1752528653108,-573.23,0.00022191,3]
[372124836,1752528653118,-460.0,0.00022191,3]
[372124837,1752528653128,-460.0,0.00022191,3]
[372124838,1752528653137,-460.0,0.00022191,3]
[372124839,1752528653147,-529.85,0.00022191,3]
[372124840,1752528653156,-460.0,0.00022191,3]
[372124841,1752528653165,-342.98156815,0.00022314,7]
[372124842,1752528653174,-1000.0,0.00022421,2]
[372124843,1752528653184,-500.0,0.00022421,2]
[372124844,1752528653193,-460.0,0.00022465,3]
[372124845,1752528653203,-1256.39,0.00022465,3]
[372124846,1752528653212,-460.0,0.00022465,3]
[372124847,1752528653223,-260.0,0.00022465,3]
[372124848,1752528653233,-460.0,0.00022465,3]
[372124849,1752528653243,-573.23,0.00022465,3]
[372124850,1752528653253,-460.0,0.00022465,3]
[372124851,1752528653264,-529.85,0.00022465,3]
[372124852,1752528653273,-20465.97459512,0.0002249,7]
[372124853,1752528653287,-3652.97816832,0.0002249,7]
[372124854,1752528653299,-179617.62483788,0.0002249,7]
[372124855,1752528653308,-12341.67,0.000225,2]
[372124856,1752528653318,-260.0,0.00022571,2]
[372124857,1752528653327,-342.98156815,0.0002259,7]
[372124858,1752528653337,-647.0,0.00022709,2]
[372124859,1752528653347,-460.0,0.00022739,3]
[372124860,1752528653454,-1256.39,0.00022739,3]
[372124861,1752528653465,-511.11,0.00022739,3]
[372124862,1752528653475,-460.0,0.00022739,3]
[372124863,1752528653484,-573.23,0.00022739,3]
[372124864,1752528653495,-460.0,0.00022739,3]
[372124865,1752528653507,-529.85,0.00022739,3]
[372124866,1752528653516,-342.98156815,0.00022866,8]
[372124867,1752528653526,-1759.33,0.000229,2]
[372124868,1752528653536,-1152.0,0.00022959,2]
[372124869,1752528653546,-500.0,0.00022968,2]
[372124870,1752528653556,-160.0,0.00023,3]
[372124871,1752528653566,-215.47013733,0.00023,3]
[372124872,1752528653577,-160.0,0.00023,3]
[372124873,1752528653586,-460.0,0.00023013,3]
[372124874,1752528653596,-1256.39,0.00023013,3]
[372124875,1752528653607,-460.0,0.00023013,3]
[372124876,1752528653618,-573.23,0.00023013,3]
[372124877,1752528653629,-460.0,0.00023013,3]
[372124878,1752528653638,-529.85,0.00023013,3]
[372124879,1752528653648,-360.0,0.00023119,2]
[372124880,1752528653658,-342.98156815,0.00023141,8]
[372124881,1752528653668,-151.0,0.000232,7]
[372124882,1752528653679,-34184.07,0.000232,7]
[372124883,1752528653688,-500.0,0.00023256,2]
[372124884,1752528653699,-460.0,0.00023287,3]
[372124885,1752528653708,-1256.39,0.00023287,3]
[372124886,1752528653717,-460.0,0.00023287,3]
[372124887,1752528653727,-573.23,0.00023287,3]
[372124888,1752528653736,-460.0,0.00023287,3]
[372124889,1752528653746,-529.85,0.00023287,3]
[372124890,1752528653755,-2221.75685081,0.000234,2]
[372124891,1752528653765,-151.0,0.000234,7]
[372124892,1752528653774,-151.0,0.000234,7]
[372124893,1752528653784,-151.0,0.000234,7]
[372124894,1752528653794,-264.04332,0.000234,7]
[372124895,1752528653803,-342.98156815,0.00023417,9]
[372124896,1752528653813,-385.662379,0.00023422,8]
[372124897,1752528653822,-151.0,0.00023561,7]
[372124898,1752528653831,-151.0,0.00023561,7]
[372124899,1752528653841,-460.0,0.00023561,3]
[372124900,1752528653850,-1256.39,0.00023561,3]
[372124901,1752528653860,-460.0,0.00023561,3]
[372124902,1752528653869,-573.23,0.00023561,3]
[372124903,1752528653880,-233.44,0.00023561,3]
[372124904,1752528653889,-151.339883,0.00023561,7]
[372124905,1752528653899,-529.85,0.00023561,3]
[372124906,1752528653909,-12341.67,0.000236,2]
[372124907,1752528653918,-460.0,0.00023667,2]
[372124908,1752528653928,-342.98156815,0.00023693,9]
[372124909,1752528653938,-460.0,0.00023835,3]
[372124910,1752528653948,-1256.39,0.00023835,3]
[372124911,1752528653957,-460.0,0.00023835,3]
[372124912,1752528653967,-573.23,0.00023835,3]
[372124913,1752528653976,-529.85,0.00023835,3]
[372124914,1752528653985,-207.4,0.00023886,2]
[372124915,1752528653994,-150000.0,0.000239,2]
[372124916,1752528654004,-150000.0,0.00023901,2]
[372124917,1752528654014,-85106.36103767,0.00023901,2]
[372124918,1752528654023,-150000.0,0.00023901,2]
[372124919,1752528654034,-150000.0,0.00023901,2]
[372124920,1752528654043,-150000.0,0.00023901,2]
[372124921,1752528654053,-151.0,0.00023901,7]
[372124922,1752528654062,-151.0,0.00023901,7]
[372124923,1752528654072,-151.0,0.00023901,7]
[372124924,1752528654083,-151.0,0.00023901,7]
[372124925,1752528654093,-151.0,0.00023901,7]
[372124926,1752528654103,-151.0,0.00023901,7]
[372124927,1752528654114,-151.0,0.00023901,7]
[372124928,1752528654123,-151.0,0.00023901,7]
[372124929,1752528654132,-151.0,0.00023901,7]
[372124930,1752528654140,-151.0,0.00023901,7]
[372124931,1752528654149,-151.0,0.00023901,7]
[372124932,1752528654157,-151.0,0.00023901,7]
[372124933,1752528654166,-151.0,0.00023901,7]
[372124934,1752528654173,-151.0,0.00023901,7]
[372124935,1752528654182,-151.0,0.00023901,7]
[372124936,1752528654191,-151.875815,0.00023901,7]
[372124937,1752528654199,-151.0,0.00023901,7]
[372124938,1752528654208,-151.0,0.00023901,7]
[372124939,1752528654216,-151.0,0.00023901,7]
[372124940,1752528654225,-151.0,0.00023901,7]
[372124941,1752528654233,-151.0,0.00023901,7]
[372124942,1752528654242,-210.405118,0.00023901,7]
[372124943,1752528654251,-210.405118,0.00023901,7]
[372124944,1752528654260,-210.405118,0.00023901,7]
[372124945,1752528654270,-210.405118,0.00023901,7]
[372124946,1752528654279,-210.405118,0.00023901,7]
[372124947,1752528654289,-210.405118,0.00023901,7]
[372124948,1752528654298,-210.405118,0.00023901,7]
[372124949,1752528654308,-210.405118,0.00023901,7]
[372124950,1752528654318,-210.405118,0.00023901,7]
[372124951,1752528654327,-210.405118,0.00023901,7]
[372124952,1752528654338,-151.0,0.00023901,7]
[372124953,1752528654348,-151.0,0.00023901,7]
[372124954,1752528654358,-151.0,0.00023901,7]
[372124955,1752528654368,-151.0,0.00023901,7]
[372124956,1752528654377,-151.0,0.00023901,7]
[372124957,1752528654388,-151.0,0.00023901,7]
[372124958,1752528654399,-151.0,0.00023901,7]
[372124959,1752528654409,-151.0,0.00023901,7]
[372124960,1752528654424,-151.0,0.00023901,7]
[372124961,1752528654433,-152.079842,0.00023901,7]
[372124962,1752528654443,-151.0,0.00023901,7]
[372124963,1752528654452,-151.0,0.00023901,7]
[372124964,1752528654462,-151.0,0.00023901,7]
[372124965,1752528654471,-151.0,0.00023901,7]
[372124966,1752528654481,-151.0,0.00023901,7]
[372124967,1752528654492,-151.0,0.00023901,7]
[372124968,1752528654501,-151.0,0.00023901,7]
[372124969,1752528654511,-151.0,0.00023901,7]
[372124970,1752528654520,-161.824296,0.00023901,7]
[372124971,1752528654530,-151.0,0.00023901,7]
[372124972,1752528654539,-151.0,0.00023901,7]
[372124973,1752528654549,-151.0,0.00023901,7]
[372124974,1752528654558,-151.0,0.00023901,7]
[372124975,1752528654567,-151.0,0.00023901,7]
[372124976,1752528654577,-151.0,0.00023901,7]
[372124977,1752528654586,-151.0,0.00023901,7]
[372124978,1752528654595,-151.0,0.00023901,7]
[372124979,1752528654604,-158.04285,0.00023901,7]
[372124980,1752528654613,-151.0,0.00023901,7]
[372124981,1752528654623,-151.0,0.00023901,7]
[372124982,1752528654634,-151.0,0.00023901,7]
[372124983,1752528654643,-151.0,0.00023901,7]
[372124984,1752528654654,-232.98768,0.00023901,7]
[372124985,1752528654663,-220.495904,0.00023901,7]
[372124986,1752528654673,-151.0,0.00023901,7]
[372124987,1752528654682,-151.0,0.00023901,7]
[372124988,1752528654691,-151.0,0.00023901,7]
[372124989,1752528654701,-151.0,0.00023901,7]
[372124990,1752528654711,-151.0,0.00023901,7]
[372124991,1752528654722,-151.0,0.00023901,7]
[372124992,1752528654731,-151.0,0.00023901,7]
[372124993,1752528654741,-151.0,0.00023901,7]
[372124994,1752528654750,-155.0,0.00023901,2]
[372124995,1752528654760,-12600.81778503,0.00023901,7]
[372124996,1752528654770,-151.0,0.00023901,7]
[372124997,1752528654780,-151.0,0.00023901,7]
[372124998,1752528654791,-151.0,0.00023901,7]
[372124999,1752528654801,-151.0,0.00023901,7]
[372125000,1752528654811,-151.0,0.00023901,7]
[372125001,1752528654820,-151.0,0.00023901,7]
[372125002,1752528654830,-342.98156815,0.00023969,10]
[372125003,1752528654839,-158.03587871,0.00023973,2]
[372125004,1752528654850,-541.19,0.00023998,4]
[372125005,1752528654859,-81932.90074744,0.00024,7]
[372125006,1752528654869,-160.0,0.00024,7]
[372125007,1752528654879,-160.0,0.00024,10]
[372125008,1752528654888,-151.0,0.00024,7]
[372125009,1752528654898,-151.0,0.00024,7]
[372125010,1752528654907,-151.0,0.00024,7]
[372125011,1752528654916,-151.0,0.00024,7]
[372125012,1752528654926,-151.0,0.00024,7]
[372125013,1752528654935,-151.0,0.00024,7]
[372125014,1752528654944,-151.0,0.00024,7]
[372125015,1752528654953,-151.0,0.00024,7]
[372125016,1752528654963,-151.0,0.00024,7]
[372125017,1752528654972,-164.976047,0.00024,7]
[372125018,1752528654981,-164.976047,0.00024,7]
[372125019,1752528654990,-151.0,0.00024,7]
[372125020,1752528654999,-151.0,0.00024,7]
[372125021,1752528655009,-525.46609069,0.00024,7]
[372125022,1752528655019,-151.0,0.00024,7]
[372125023,1752528655028,-230.73061749,0.00024,7]
[372125024,1752528655039,-838.70323114,0.00024,7]
[372125025,1752528655049,-151.0,0.00024,7]
[372125026,1752528655059,-2375.64,0.00024,7]
[372125027,1752528655070,-151.0,0.00024,7]
[372125028,1752528655081,-151.0,0.00024,7]
[372125029,1752528655091,-160.0,0.00024,7]
[372125030,1752528655100,-215.47013733,0.00024,7]
[372125031,1752528655112,-160.0,0.00024,7]
[372125032,1752528655122,-151.0,0.00024,7]
[372125033,1752528655131,-541.19,0.00024098,6]
[372125034,1752528655141,-460.0,0.00024109,3]
[372125035,1752528655149,-467.25,0.00024109,3]
[372125036,1752528655159,-460.0,0.00024109,3]
[372125037,1752528655169,-510.22,0.00024109,3]
[372125038,1752528655178,-803.36,0.00024109,3]
[372125039,1752528655187,-460.0,0.00024109,3]
[372125040,1752528655197,-1256.39,0.00024109,3]
[372125041,1752528655207,-460.0,0.00024109,3]
[372125042,1752528655218,-573.23,0.00024109,3]
[372125043,1752528655228,-529.85,0.00024109,3]
[372125044,1752528655239,-1060.50001061,0.00024135,12]
[372125045,1752528655250,-541.19,0.00024198,4]
[372125046,1752528655261,-560.0,0.00024215,2]
[372125047,1752528655272,-857.4953208,0.00024219,2]
[372125048,1752528655281,-342.98156815,0.00024245,10]
[372125049,1752528655291,-541.19,0.00024298,2]
[372125050,1752528655300,-34184.07,0.000243,7]
[372125051,1752528655310,-696.48503382,0.00024376,12]
[372125052,1752528655321,-460.0,0.00024383,3]
[372125053,1752528655331,-467.25,0.00024383,3]
[372125054,1752528655341,-460.0,0.00024383,3]
[372125055,1752528655351,-510.22,0.00024383,3]
[372125056,1752528655361,-803.36,0.00024383,3]
[372125057,1752528655371,-460.0,0.00024383,3]
[372125058,1752528655381,-1256.39,0.00024383,3]
[372125059,1752528655392,-460.0,0.00024383,3]
[372125060,1752528655403,-573.23,0.00024383,3]
[372125061,1752528655414,-529.85,0.00024383,3]
[372125062,1752528655424,-541.19,0.00024398,6]
[372125063,1752528655433,-168.0,0.00024404,2]
[372125064,1752528655445,-155.0,0.00024449,2]
[372125065,1752528655457,-541.19,0.00024498,5]
[372125066,1752528655467,-302.0,0.000245,30]
[372125067,1752528655476,-200.0,0.000245,2]
[372125068,1752528655486,-151.0,0.000245,7]
[372125069,1752528655496,-151.0,0.000245,7]
[372125070,1752528655505,-877.3,0.000245,7]
[372125071,1752528655515,-800.0,0.0002451,2]
[372125072,1752528655524,-693.9476181,0.00024518,2]
[372125073,1752528655535,-342.98156815,0.00024521,11]
[372125074,1752528655544,-371.45843176,0.00024551,2]
[372125075,1752528655554,-800.0,0.00024574,2]
[372125076,1752528655563,-693.94761808,0.0002458,2]
[372125077,1752528655572,-541.19,0.00024598,3]
[372125078,1752528655583,-693.94761808,0.00024641,2]
[372125079,1752528655592,-22910.8478915,0.0002465,2]
[372125080,1752528655602,-460.0,0.00024657,3]
[372125081,1752528655611,-467.25,0.00024657,3]
[372125082,1752528655621,-460.0,0.00024657,3]
[372125083,1752528655630,-510.22,0.00024657,3]
[372125084,1752528655639,-803.36,0.00024657,3]
[372125085,1752528655649,-460.0,0.00024657,3]
[372125086,1752528655658,-1256.39,0.00024657,3]
[372125087,1752528655667,-460.0,0.00024657,3]
[372125088,1752528655677,-300.0,0.00024657,2]
[372125089,1752528655686,-300.0,0.00024657,2]
[372125090,1752528655695,-322.07201774,0.00024657,2]
[372125091,1752528655705,-573.23,0.00024657,3]
[372125092,1752528655714,-529.85,0.00024657,3]
[372125093,1752528655724,-320.15308212,0.00024658,14]
[372125094,1752528655734,-200.0,0.00024658,15]
[372125095,1752528655743,-254.94293185,0.00024658,2]
[372125096,1752528655753,-380.0,0.00024658,2]
[372125097,1752528655762,-185.86553688,0.00024658,2]
[372125098,1752528655771,-500.0,0.00024658,2]
[372125099,1752528655784,-476.86250919,0.00024658,2]
[372125100,1752528655795,-500.0,0.00024658,2]
[372125101,1752528655804,-500.0,0.00024658,2]
[372125102,1752528655814,-500.0,0.00024658,2]
[372125103,1752528655824,-500.0,0.00024658,2]
[372125104,1752528655833,-500.0,0.00024658,2]
[372125105,1752528655842,-500.0,0.00024658,2]
[372125106,1752528655851,-500.0,0.00024658,2]
[372125107,1752528655861,-500.0,0.00024658,2]
[372125108,1752528655871,-500.0,0.00024685,2]
[372125109,1752528655880,-541.19,0.00024698,4]
[372125110,1752528655890,-12341.67,0.000247,2]
[372125111,1752528655900,-215.47013733,0.000247,3]
[372125112,1752528655910,-693.94761808,0.00024703,2]
[372125113,1752528655920,-500.0,0.00024713,2]
[372125114,1752528656022,-500.0,0.0002474,2]
[372125115,1752528656037,-660.0,0.00024763,2]
[372125116,1752528656046,-693.94761808,0.00024764,2]
[372125117,1752528656055,-500.0,0.00024768,2]
[372125118,1752528656064,-500.0,0.00024795,2]
[372125119,1752528656074,-342.98156815,0.00024797,11]
[372125120,1752528656083,-541.19,0.00024798,7]
[372125121,1752528656093,-2000.0,0.000248,2]
[372125122,1752528656102,-150.0,0.000248,2]
[372125123,1752528656111,-500.0,0.00024822,2]
[372125124,1752528656121,-693.94761808,0.00024826,2]
[372125125,1752528656130,-5185.97382925,0.00024834,2]
[372125126,1752528656139,-5000.0,0.00024834,2]
[372125127,1752528656148,-5000.0,0.00024834,2]
[372125128,1752528656157,-500.0,0.0002485,2]
[372125129,1752528656167,-1315.0,0.0002487,7]
[372125130,1752528656177,-168.0,0.00024871,2]
[372125131,1752528656186,-500.0,0.00024873,2]
[372125132,1752528656196,-500.0,0.00024877,2]
[372125133,1752528656205,-693.94761808,0.00024887,2]
[372125134,1752528656215,-541.24,0.00024898,7]
[372125135,1752528656224,-151.0,0.000249,7]
[372125136,1752528656234,-151.0,0.000249,7]
[372125137,1752528656243,-151.0,0.000249,7]
[372125138,1752528656252,-151.0,0.000249,7]